fUSD/lending_fUSD_20260227
["ID","MTS","AMOUNT","RATE_DAILY","PERIOD"]
[406851837,1772233838628,-500.0,0.000103,2]
[406851838,1772233838637,-500.0,0.000103,2]
[406851839,1772233838646,-500.0,0.000103,2]
[406851840,1772233838655,-500.0,0.000103,2]
[406851841,1772233838664,-500.0,0.000103,2]
[406851842,1772233838674,-500.0,0.000103,2]
[406851843,1772233838683,-500.0,0.000103,2]
[406851844,1772233838693,-500.0,0.000103,2]
[406851845,1772233838703,-500.0,0.000103,2]
[406851846,1772233838714,-500.0,0.000103,2]
[406851847,1772233838723,-500.0,0.000103,2]
[406851848,1772233838732,-500.0,0.000103,2]
[406851849,1772233838741,-500.0,0.000103,2]
[406851850,1772233838750,-500.0,0.000103,2]
[406851851,1772233838759,-500.0,0.000103,2]
[406851852,1772233838769,-500.0,0.000103,2]
[406851853,1772233838778,-500.0,0.000103,2]
[406851854,1772233838787,-700.0,0.000103,2]
[406851855,1772233838797,-700.0,0.000103,2]
[406851856,1772233838806,-500.0,0.000103,2]
[406851857,1772233838815,-700.0,0.000103,2]
[406851858,1772233838824,-500.0,0.000103,2]
[406851859,1772233838834,-700.0,0.000103,2]
[406851860,1772233838843,-500.0,0.000103,2]
[406851861,1772233838852,-700.0,0.000103,2]
[406851862,1772233838861,-500.0,0.000103,2]
[406851863,1772233838871,-500.0,0.000103,2]
[406851864,1772233838880,-700.0,0.000103,2]
[406851865,1772233838890,-500.0,0.000103,2]
[406851866,1772233838899,-700.0,0.000103,2]
[406851867,1772233838912,-700.0,0.000103,2]
[406851868,1772233838922,-500.0,0.000103,2]
[406851869,1772233838931,-700.0,0.000103,2]
[406851870,1772233838940,-500.0,0.000103,2]
[406851871,1772233838951,-700.0,0.000103,2]
[406851872,1772233838960,-500.0,0.000103,2]
[406851873,1772233838969,-700.0,0.000103,2]
[406851874,1772233838979,-700.0,0.000103,2]
[406851875,1772233838988,-1182.2506885,0.000103,2]
[406851876,1772233838998,-500.0,0.000103,2]
[406851877,1772233839008,-500.0,0.000103,2]
[406851878,1772233839017,-500.0,0.000103,2]
[406851879,1772233839026,-500.0,0.000103,2]
[406851880,1772233839036,-500.0,0.000103,2]
[406851881,1772233839047,-500.0,0.000103,2]
[406851882,1772233839059,-658.39398795,0.000103,2]
[406851883,1772233839067,-80285.004223,0.00010314,2]
[406851884,1772233839077,-2000.0,0.00010316,2]
[406851885,1772233839087,-2000.0,0.00010316,2]
[406851886,1772233839097,-250.0,0.00010439,2]
[406851887,1772233839107,-1000.0,0.00010511,2]
[406851888,1772233839116,-578.0,0.0001054,2]
[406851889,1772233839125,-493.0,0.00010673,2]
[406851890,1772233839134,-615.41784141,0.00010864,2]
[406851891,1772233839144,-2500.0,0.00010864,2]
[406851892,1772233839153,-150.0,0.00010959,2]
[406851893,1772233839162,-166.66,0.00010959,2]
[406851894,1772233839173,-9460.19512766,0.00011,2]
[406851895,1772233839182,-166.66,0.00011068,2]
[406851896,1772233839191,-28057.84474414,0.00011099,2]
[406851897,1772233839200,-28057.84474408,0.00011099,2]
[406851898,1772233839210,-28057.84474408,0.00011099,2]
[406851899,1772233839219,-2291.08654941,0.00011099,2]
[406851900,1772233839228,-2291.08654935,0.00011099,2]
[406851901,1772233839237,-2291.08654935,0.00011099,2]
[406851902,1772233839246,-166.66,0.00011178,2]
[406851903,1772233839256,-28057.84474408,0.0001128,2]
[406851904,1772233839267,-2291.08654935,0.0001128,2]
[406851905,1772233839276,-166.66,0.00011288,2]
[406851906,1772233839285,-22467.8061797,0.00011375,2]
[406851907,1772233839294,-166.66,0.00011397,2]
[406851908,1772233839303,-2556.86146722,0.00011412,2]
[406851909,1772233839314,-166.66,0.00011507,2]
[406851910,1772233839324,-284.01,0.00011621,2]
[406851911,1772233839333,-1000.0,0.00011679,2]
[406851912,1772233839342,-17914.0058498,0.00011811,2]
[406851913,1772233839352,-3997.1549941,0.00012145,2]
[406851914,1772233839361,-28057.84474408,0.00012383,2]
[406851915,1772233839371,-2291.08654935,0.00012383,2]
[406851916,1772233839380,-1487.135474,0.00012539,2]
[406851917,1772233839389,-195.363008,0.00012539,2]
[406851918,1772233839399,-190.730719,0.00012571,2]
[406851919,1772233839408,-523.007298,0.00012571,2]
[406851920,1772233839418,-5013.245191,0.00012825,2]
[406851921,1772233839427,-1000.0,0.00012847,2]
[406851922,1772233839436,-500.0,0.0001289,2]
[406851923,1772233839445,-500.0,0.0001289,2]
[406851924,1772233839455,-500.0,0.0001289,2]
[406851925,1772233839465,-500.0,0.0001289,2]
[406851926,1772233839474,-500.0,0.0001289,2]
[406851927,1772233839484,-500.0,0.0001289,2]
[406851928,1772233839493,-500.0,0.0001289,2]
[406851929,1772233839502,-500.0,0.0001289,2]
[406851930,1772233839513,-500.0,0.0001289,2]
[406851931,1772233839522,-500.0,0.0001289,2]
[406851932,1772233839531,-500.0,0.0001289,2]
[406851933,1772233839540,-500.0,0.0001289,2]
[406851934,1772233839550,-500.0,0.0001289,2]
[406851935,1772233839559,-500.0,0.0001289,2]
[406851936,1772233839573,-500.0,0.0001289,2]
[406851937,1772233839582,-500.0,0.0001289,2]
[406851939,1772233839591,-500.0,0.0001289,2]
[406851941,1772233839601,-500.0,0.0001289,2]
[406851944,1772233839610,-500.0,0.0001289,2]
[406851947,1772233839619,-500.0,0.0001289,2]
[406851949,1772233839628,-500.0,0.0001289,2]
[406851951,1772233839637,-500.0,0.0001289,2]
[406851952,1772233839646,-500.0,0.0001289,2]
[406851953,1772233839657,-500.0,0.0001289,2]
[406851954,1772233839667,-500.0,0.0001289,2]
[406851955,1772233839676,-500.0,0.0001289,2]
[406851956,1772233839688,-500.0,0.0001289,2]
[406851957,1772233839698,-500.0,0.0001289,2]
[406851958,1772233839707,-500.0,0.0001289,2]
[406851959,1772233839718,-500.0,0.0001289,2]
[406851960,1772233839727,-500.0,0.0001289,2]
[406851961,1772233839736,-700.0,0.0001289,2]
[406851962,1772233839745,-500.0,0.0001289,2]
[406851963,1772233839755,-700.0,0.0001289,2]
[406851964,1772233839766,-500.0,0.0001289,2]
[406851965,1772233839776,-700.0,0.0001289,2]
[406851966,1772233839786,-500.0,0.0001289,2]
[406851967,1772233839796,-700.0,0.0001289,2]
[406851968,1772233839805,-500.0,0.0001289,2]
[406851969,1772233839815,-700.0,0.0001289,2]
[406851970,1772233839825,-700.0,0.0001289,2]
[406851971,1772233839835,-700.0,0.0001289,2]
[406851972,1772233839844,-500.0,0.0001289,2]
[406851973,1772233839854,-700.0,0.0001289,2]
[406851974,1772233839864,-500.0,0.0001289,2]
[406851975,1772233839873,-500.0,0.0001289,2]
[406851976,1772233839882,-700.0,0.0001289,2]
[406851977,1772233839891,-500.0,0.0001289,2]
[406851978,1772233839901,-500.0,0.0001289,2]
[406851979,1772233839915,-700.0,0.0001289,2]
[406851980,1772233839924,-500.0,0.0001289,2]
[406851981,1772233839934,-503.55340373,0.0001289,2]
[406851982,1772233839945,-700.0,0.0001289,2]
[406851983,1772233839955,-500.0,0.0001289,2]
[406851984,1772233839972,-700.0,0.0001289,2]
[406851985,1772233839984,-500.0,0.0001289,2]
[406851986,1772233839996,-700.0,0.0001289,2]
[406851987,1772233840008,-500.0,0.0001289,2]
[406851988,1772233840018,-500.0,0.0001289,2]
[406851989,1772233840028,-500.0,0.0001289,2]
[406851990,1772233840037,-856.03124545,0.0001289,2]
[406851991,1772233840047,-500.0,0.0001289,2]
[406851992,1772233840057,-500.0,0.0001289,2]
[406851993,1772233840069,-500.0,0.0001289,2]
[406851994,1772233840078,-500.0,0.0001289,2]
[406851995,1772233840088,-500.0,0.0001289,2]
[406851996,1772233840097,-500.0,0.0001289,2]
[406851997,1772233840106,-670.0,0.0001289,2]
[406851998,1772233840116,-500.0,0.0001289,2]
[406851999,1772233840125,-500.0,0.0001289,2]
[406852000,1772233840134,-500.0,0.0001289,2]
[406852001,1772233840143,-500.0,0.0001289,2]
[406852002,1772233840153,-500.0,0.0001289,2]
[406852003,1772233840163,-500.0,0.0001289,2]
[406852004,1772233840172,-500.0,0.0001289,2]
[406852005,1772233840181,-500.0,0.0001289,2]
[406852007,1772233840191,-500.0,0.0001289,2]
[406852009,1772233840200,-500.0,0.0001289,2]
[406852010,1772233840209,-1118.6062023,0.00013148,2]
[406852011,1772233840218,-28057.84474408,0.00013487,2]
[406852012,1772233840227,-2291.08654935,0.00013487,2]
[406852013,1772233840237,-22851.40088296,0.0001358,2]
[406852014,1772233840246,-500.0,0.00013698,2]
[406852015,1772233840255,-500.0,0.00013698,2]
[406852016,1772233840265,-500.0,0.00013698,2]
[406852017,1772233840274,-500.0,0.00013698,2]
[406852018,1772233840283,-500.0,0.00013698,2]
[406852019,1772233840292,-500.0,0.00013698,2]
[406852020,1772233840301,-500.0,0.00013698,2]
[406852021,1772233840311,-500.0,0.00013698,2]
[406852022,1772233840320,-500.0,0.00013698,2]
[406852023,1772233840330,-500.0,0.00013698,2]
[406852024,1772233840339,-500.0,0.00013698,2]
[406852025,1772233840349,-500.0,0.00013698,2]
[406852026,1772233840359,-500.0,0.00013698,2]
[406852027,1772233840369,-500.0,0.00013698,2]
[406852028,1772233840378,-500.0,0.00013698,2]
[406852029,1772233840387,-500.0,0.00013698,2]
[406852030,1772233840398,-500.0,0.00013698,2]
[406852031,1772233840407,-217.45849177,0.00013698,2]
[406852032,1772233840417,-500.0,0.00013698,2]
[406852033,1772233840426,-500.0,0.00013698,2]
[406852034,1772233840437,-500.0,0.00013698,2]
[406852035,1772233840446,-500.0,0.00013698,2]
[406852036,1772233840455,-500.0,0.00013698,2]
[406852037,1772233840465,-500.0,0.00013698,2]
[406852038,1772233840474,-500.0,0.00013698,2]
[406852039,1772233840483,-500.0,0.00013698,2]
[406852040,1772233840492,-500.0,0.00013698,2]
[406852041,1772233840501,-500.0,0.00013698,2]
[406852042,1772233840510,-500.0,0.00013698,2]
[406852043,1772233840519,-500.0,0.00013698,2]
[406852044,1772233840529,-500.0,0.00013698,2]
[406852045,1772233840538,-500.0,0.00013698,2]
[406852046,1772233840549,-500.0,0.00013698,2]
[406852047,1772233840558,-500.0,0.00013698,2]
[406852048,1772233840568,-636.48559846,0.00013698,2]
[406852049,1772233840577,-621.22,0.00013698,2]
[406852050,1772233840587,-621.22,0.00013698,2]
[406852051,1772233840596,-621.22,0.00013698,2]
[406852052,1772233840607,-621.22,0.00013698,2]
[406852053,1772233840617,-621.22,0.00013698,2]
[406852054,1772233840626,-621.22,0.00013698,2]
[406852055,1772233840636,-621.22,0.00013698,2]
[406852056,1772233840648,-621.22,0.00013698,2]
[406852057,1772233840657,-621.22,0.00013698,2]
[406852058,1772233840667,-500.0,0.00013698,2]
[406852059,1772233840676,-500.0,0.00013698,2]
[406852060,1772233840686,-500.0,0.00013698,2]
[406852061,1772233840695,-500.0,0.00013698,2]
[406852062,1772233840705,-500.0,0.00013698,2]
[406852063,1772233840715,-500.0,0.00013698,2]
[406852064,1772233840725,-500.0,0.00013698,2]
[406852065,1772233840735,-500.0,0.00013698,2]
[406852066,1772233840744,-500.0,0.00013698,2]
[406852067,1772233840753,-500.0,0.00013698,2]
[406852068,1772233840763,-500.0,0.00013698,2]
[406852069,1772233840772,-500.0,0.00013698,2]
[406852070,1772233840782,-500.0,0.00013698,2]
[406852071,1772233840791,-500.0,0.00013698,2]
[406852072,1772233840800,-500.0,0.00013698,2]
[406852073,1772233840810,-500.0,0.00013698,2]
[406852074,1772233840820,-500.0,0.00013698,2]
[406852075,1772233840829,-500.0,0.00013698,2]
[406852076,1772233840839,-500.0,0.00013698,2]
[406852077,1772233840849,-500.0,0.00013698,2]
[406852078,1772233840858,-500.0,0.00013698,2]
[406852079,1772233840868,-500.0,0.00013698,2]
[406852080,1772233840878,-500.0,0.00013698,2]
[406852081,1772233840888,-500.0,0.00013698,2]
[406852082,1772233840898,-500.0,0.00013698,2]
[406852083,1772233840911,-500.0,0.00013698,2]
[406852084,1772233840920,-500.0,0.00013698,2]
[406852085,1772233840930,-366.29,0.00013699,2]
[406852086,1772233840939,-842.63,0.00013699,2]
[406852087,1772233840948,-200.0,0.00013699,2]
[406852088,1772233840958,-175.65842633,0.00013699,2]
[406852089,1772233840966,-500.0,0.00013699,2]
[406852090,1772233840975,-500.0,0.00013699,2]
[406852091,1772233840987,-500.0,0.00013699,2]
[406852092,1772233840996,-500.0,0.00013699,2]
[406852093,1772233841006,-164.29010834,0.00013699,2]
[406852094,1772233841015,-500.0,0.00013699,2]
[406852095,1772233841024,-500.0,0.00013699,2]
[406852096,1772233841033,-500.0,0.00013699,2]
[406852097,1772233841042,-500.0,0.00013699,2]
[406852098,1772233841051,-500.0,0.00013699,2]
[406852099,1772233841060,-500.0,0.00013699,2]
[406852100,1772233841071,-500.0,0.00013699,2]
[406852101,1772233841081,-500.0,0.00013699,2]
[406852102,1772233841090,-500.0,0.00013699,2]
[406852103,1772233841102,-500.0,0.00013699,2]
[406852104,1772233841111,-500.0,0.00013699,2]
[406852105,1772233841120,-500.0,0.00013699,2]
[406852106,1772233841129,-500.0,0.00013699,2]
[406852107,1772233841139,-500.0,0.00013699,2]
[406852108,1772233841256,-507.14846603,0.00013699,2]
[406852109,1772233841281,-500.0,0.00013699,2]
[406852110,1772233841291,-500.0,0.00013699,2]
[406852111,1772233841301,-500.0,0.00013699,2]
[406852112,1772233841311,-500.0,0.00013699,2]
[406852113,1772233841320,-500.0,0.00013699,2]
[406852114,1772233841329,-310.9054072,0.00013699,2]
[406852115,1772233841338,-1000.0,0.00014014,2]
[406852116,1772233841348,-500.0,0.00014146,2]
[406852117,1772233841357,-500.0,0.00014146,2]
[406852118,1772233841367,-500.0,0.00014146,2]
[406852119,1772233841376,-500.0,0.00014146,2]
[406852120,1772233841386,-500.0,0.00014146,2]
[406852121,1772233841396,-432.44397161,0.00014146,2]
[406852122,1772233841406,-587.0377833,0.00014146,2]
[406852123,1772233841415,-1008.10480934,0.00014247,2]
[406852124,1772233841424,-1000.0,0.00014247,2]
[406852125,1772233841433,-1000.0,0.00014247,2]
[406852126,1772233841443,-1000.0,0.00014247,2]
[406852127,1772233841452,-1000.0,0.00014247,2]
[406852128,1772233841461,-509.93232969,0.00014247,2]
[406852129,1772233841472,-1000.0,0.00014247,2]
[406852130,1772233841482,-1000.0,0.00014247,2]
[406852131,1772233841491,-1000.0,0.00014247,2]
[406852132,1772233841501,-512.76163768,0.00014247,2]
[406852133,1772233841510,-1000.0,0.00014247,2]
[406852134,1772233841520,-1000.0,0.00014247,2]
[406852135,1772233841530,-1000.0,0.00014247,2]
[406852136,1772233841539,-1000.0,0.00014247,2]
[406852137,1772233841549,-1000.0,0.00014247,2]
[406852138,1772233841559,-1000.0,0.00014247,2]
[406852139,1772233841569,-1000.0,0.00014247,2]
[406852140,1772233841580,-1000.0,0.00014247,2]
[406852141,1772233841590,-1000.0,0.00014247,2]
[406852142,1772233841599,-1000.0,0.00014247,2]
[406852143,1772233841609,-1000.0,0.00014247,2]
[406852144,1772233841618,-366.29,0.00014384,2]
[406852145,1772233841629,-28057.84474408,0.0001459,2]
[406852146,1772233841639,-2291.08654935,0.0001459,2]
[406852147,1772233841649,-151.0,0.00014634,2]
[406852148,1772233841659,-151.0,0.00014634,2]
[406852149,1772233841669,-1500.0,0.00014795,2]
[406852150,1772233841678,-1500.0,0.00014795,2]
[406852151,1772233841687,-1500.0,0.00014795,2]
[406852152,1772233841697,-1500.0,0.00014795,2]
[406852153,1772233841706,-1500.0,0.00014795,2]
[406852154,1772233841715,-1500.0,0.00014795,2]
[406852155,1772233841724,-1500.0,0.00014795,2]
[406852156,1772233841734,-1500.0,0.00014795,2]
[406852157,1772233841743,-1500.0,0.00014795,2]
[406852158,1772233841752,-741.17434169,0.00014795,2]
[406852159,1772233841762,-1597.09510233,0.00014795,2]
[406852160,1772233841771,-1500.0,0.00014795,2]
[406852161,1772233841780,-1500.0,0.00014795,2]
[406852162,1772233841789,-1500.0,0.00014795,2]
[406852163,1772233841799,-1500.0,0.00014795,2]
[406852164,1772233841808,-1500.0,0.00014795,2]
[406852165,1772233841817,-1500.0,0.00014795,2]
[406852166,1772233841826,-1144.44196517,0.00014795,2]
[406852167,1772233841835,-508.0,0.0001489,2]
[406852168,1772233841844,-169.39470199,0.000149,2]
[406852169,1772233841853,-169.39470198,0.000149,2]
[406852170,1772233841862,-169.39470198,0.000149,2]
[406852171,1772233841872,-250.0,0.00015,2]
[406852172,1772233841881,-693.13,0.00015068,2]
[406852173,1772233841891,-366.29,0.00015068,2]
[406852174,1772233841900,-1551.93,0.0001531,2]
[406852175,1772233841912,-781.53,0.00015342,2]
[406852176,1772233841923,-2000.0,0.00015342,2]
[406852177,1772233841933,-2000.0,0.00015342,2]
[406852178,1772233841943,-1000.0,0.00015342,2]
[406852179,1772233841952,-2000.0,0.00015342,2]
[406852180,1772233841962,-203.52805437,0.00015342,2]
[406852181,1772233841971,-2000.0,0.00015342,2]
[406852182,1772233841981,-1516.10263761,0.00015342,2]
[406852183,1772233841990,-2000.0,0.00015342,2]
[406852184,1772233841999,-538.67533251,0.00015342,2]
[406852185,1772233842009,-1505.60534384,0.00015342,2]
[406852186,1772233842018,-1614.542994,0.00015342,2]
[406852187,1772233842028,-2000.0,0.00015342,2]
[406852188,1772233842037,-1201.13446519,0.00015342,2]
[406852189,1772233842046,-2000.0,0.00015342,2]
[406852190,1772233842055,-2000.0,0.00015342,2]
[406852191,1772233842064,-9984.67,0.00015471,2]
[406852192,1772233842074,-28057.84474408,0.00015693,2]
[406852193,1772233842083,-2291.08654935,0.00015693,2]
[406852194,1772233842092,-366.29,0.00015753,2]
[406852195,1772233842102,-2028.27485084,0.0001589,2]
[406852196,1772233842111,-2500.0,0.0001589,2]
[406852197,1772233842121,-708.62062,0.0001589,2]
[406852198,1772233842130,-2500.0,0.0001589,2]
[406852199,1772233842140,-1023.31974037,0.0001589,2]
[406852200,1772233842150,-1005.53161927,0.0001589,2]
[406852201,1772233842159,-2275.06944665,0.0001589,2]
[406852202,1772233842169,-2500.0,0.0001589,2]
[406852203,1772233842178,-2900.0,0.000159,5]
[406852204,1772233842188,-5000.0,0.0001596,2]
[406852205,1772233842198,-5000.00948527,0.000162,5]
[406852206,1772233842208,-304.59,0.00016438,2]
[406852207,1772233842218,-366.29,0.00016438,2]
[406852208,1772233842227,-1484.08045004,0.00016438,2]
[406852209,1772233842237,-2291.80881226,0.00016438,2]
[406852210,1772233842246,-3000.0,0.00016438,2]
[406852212,1772233842256,-228.970627,0.00016478,7]
[406852214,1772233842266,-3469.982772,0.00016718,7]
[406852215,1772233842275,-455.84702,0.00016718,7]
[406852216,1772233842285,-158.942266,0.00016761,7]
[406852217,1772233842294,-1220.350362,0.00016761,7]
[406852218,1772233842304,-28057.84474408,0.00016797,2]
[406852219,1772233842314,-2291.08654935,0.00016797,2]
[406852220,1772233842324,-3500.0,0.00016986,2]
[406852221,1772233842334,-32158.97035652,0.00017,2]
[406852222,1772233842344,-168.0,0.00017182,2]
[406852223,1772233842354,-168.0,0.00017249,2]
[406852224,1772233842363,-3900.0,0.000174,6]
[406852225,1772233842373,-168.0,0.00017496,2]
[406852226,1772233842383,-4900.0,0.000175,6]
[406852227,1772233842392,-3974.15344995,0.00017534,2]
[406852228,1772233842402,-168.0,0.00017546,2]
[406852229,1772233842411,-2000.0,0.0001759,2]
[406852231,1772233842421,-900.0,0.000176,6]
[406852232,1772233842431,-168.0,0.00017626,2]
[406852234,1772233842441,-2000.0,0.0001769,2]
[406852235,1772233842450,-900.0,0.000177,6]
[406852236,1772233842460,-168.0,0.00017749,2]
[406852237,1772233842469,-168.0,0.00017789,2]
[406852238,1772233842478,-2000.0,0.0001779,2]
[406852239,1772233842488,-900.0,0.000178,6]
[406852240,1772233842497,-5000.0,0.00017808,2]
[406852241,1772233842507,-800.0,0.00017808,2]
[406852242,1772233842518,-1000.0,0.00017824,7]
[406852243,1772233842528,-1075.08672241,0.0001789,2]
[406852244,1772233842538,-500.0,0.00017898,2]
[406852245,1772233842548,-900.0,0.000179,6]
[406852246,1772233842558,-19420.49031765,0.000179,3]
[406852247,1772233842568,-631.07411069,0.000179,2]
[406852248,1772233842578,-38170.54678558,0.000179,2]
[406852249,1772233842587,-1657.06771759,0.000179,2]
[406852250,1772233842597,-14273.09225926,0.000179,2]
[406852251,1772233842606,-28057.84474408,0.000179,2]
[406852252,1772233842616,-1008.58705244,0.000179,3]
[406852253,1772233842625,-50000.0,0.0001799,2]
[406852254,1772233842635,-2026.47664966,0.0001799,2]
[406852255,1772233842645,-2026.47664966,0.0001799,2]
[406852256,1772233842654,-151.0,0.00017997,2]
[406852257,1772233842664,-300.0,0.00017999,2]
[406852258,1772233842674,-300.0,0.00017999,2]
[406852259,1772233842686,-286.61762734,0.00017999,2]
[406852260,1772233842696,-500.0,0.00017999,2]
[406852261,1772233842706,-313.34247632,0.00017999,2]
[406852262,1772233842715,-500.0,0.00017999,2]
[406852263,1772233842725,-500.0,0.00017999,2]
[406852264,1772233842735,-500.0,0.00017999,2]
[406852265,1772233842745,-500.0,0.00017999,2]
[406852266,1772233842755,-500.0,0.00017999,2]
[406852267,1772233842765,-500.0,0.00017999,2]
[406852268,1772233842775,-500.0,0.00017999,2]
[406852269,1772233842784,-492.57649127,0.00017999,2]
[406852270,1772233842794,-621.22,0.00017999,2]
[406852271,1772233842804,-621.22,0.00017999,2]
[406852272,1772233842814,-621.22,0.00017999,2]
[406852274,1772233842824,-621.22,0.00017999,2]
[406852276,1772233842833,-621.22,0.00017999,2]
[406852277,1772233842842,-621.22,0.00017999,2]
[406852278,1772233842852,-621.22,0.00017999,2]
[406852279,1772233842862,-621.22,0.00017999,2]
[406852280,1772233842872,-621.22,0.00017999,2]
[406852281,1772233842881,-621.22,0.00017999,2]
[406852282,1772233842892,-621.22,0.00017999,2]
[406852283,1772233842902,-621.22,0.00017999,2]
[406852284,1772233842916,-621.22,0.00017999,2]
[406852285,1772233842926,-621.22,0.00017999,2]
[406852286,1772233842936,-621.45282882,0.00017999,2]
[406852288,1772233842945,-500.0,0.00017999,2]
[406852290,1772233842958,-500.0,0.00017999,2]
[406852292,1772233842967,-500.0,0.00017999,2]
[406852294,1772233842977,-500.0,0.00017999,2]
[406852296,1772233842987,-500.0,0.00017999,2]
[406852298,1772233842997,-500.0,0.00017999,2]
[406852300,1772233843007,-500.0,0.00017999,2]
[406852302,1772233843017,-500.0,0.00017999,2]
[406852303,1772233843027,-500.0,0.00017999,2]
[406852305,1772233843036,-500.0,0.00017999,2]
[406852307,1772233843047,-500.0,0.00017999,2]
[406852309,1772233843057,-522.57762627,0.00017999,2]
[406852311,1772233843067,-500.0,0.00017999,2]
[406852312,1772233843076,-180.14,0.00017999,2]
[406852313,1772233843086,-500.0,0.00017999,2]
[406852314,1772233843095,-500.0,0.00017999,2]
[406852315,1772233843105,-500.0,0.00017999,2]
[406852316,1772233843115,-500.0,0.00017999,2]
[406852317,1772233843124,-500.0,0.00017999,2]
[406852318,1772233843134,-173.81708552,0.00017999,2]
[406852319,1772233843144,-300.0,0.00017999,2]
[406852321,1772233843153,-6932821.41445623,0.00018,2]
[406852323,1772233843229,-5338.61561753,0.00018,2]
[406852324,1772233843240,-1416.40035,0.00018,2]
[406852325,1772233843286,-289.34267656,0.00018,2]
[406852326,1772233843298,-313.97066285,0.00018,2]
[406852327,1772233843310,-3157577.42192136,0.00018,2]
[406852328,1772233843321,-511.0,0.00018,2]
[406852329,1772233843407,-665.46324136,0.000179,2]
[406852330,1772233843420,-1323.95192,0.000179,2]
[406852331,1772233843432,-301.67138799,0.000179,2]
[406852332,1772233843442,-4736.51030036,0.00018,2]
[406852344,1772233845412,-2085.55285507,0.0001,2]
[406852345,1772233845421,-7286.0849747,0.00018,2]
[406852346,1772233845433,-10476.70578017,0.00018,2]
[406852347,1772233845444,-6771.11083968,0.00018,2]
[406852368,1772234397906,938.4,7.25e-05,2]
[406852373,1772234810012,-1137.109,7.662e-05,2]
[406852374,1772234810033,-150.154,7.662e-05,2]
[406852377,1772234873492,-250.0,7.712e-05,2]
[406852378,1772234873515,-300.0,7.718e-05,2]
[406852379,1772234873539,-28460.0,7.719e-05,2]
[406852394,1772235031750,-22324.98,7.699e-05,2]
[406852395,1772235031760,-30403.0,7.699e-05,2]
[406852396,1772235031769,-215.0,7.699e-05,2]
[406852397,1772235031779,-250.0,7.707e-05,2]
[406852398,1772235031788,-151.0,7.716e-05,2]
[406852399,1772235031797,-1200.0,7.717e-05,2]
[406852400,1772235031806,-150.0,7.717e-05,2]
[406852401,1772235031815,-300.0,7.717e-05,2]
[406852402,1772235031825,-192.66219104,7.718e-05,2]
[406852403,1772235031834,-542.58467852,7.718e-05,2]
[406852404,1772235031844,-500.0,7.718e-05,2]
[406852405,1772235031852,-500.0,7.718e-05,2]
[406852406,1772235031862,-500.0,7.718e-05,2]
[406852407,1772235031872,-500.0,7.718e-05,2]
[406852408,1772235031882,-500.0,7.718e-05,2]
[406852409,1772235031891,-500.0,7.718e-05,2]
[406852410,1772235031900,-500.0,7.718e-05,2]
[406852411,1772235031909,-500.0,7.718e-05,2]
[406852412,1772235031917,-500.0,7.718e-05,2]
[406852413,1772235031927,-500.0,7.718e-05,2]
[406852414,1772235031936,-500.0,7.718e-05,2]
[406852415,1772235031945,-500.0,7.718e-05,2]
[406852416,1772235031954,-500.0,7.718e-05,2]
[406852417,1772235031963,-500.0,7.718e-05,2]